Cogmind - Beta 16.1 @@@ ROGUE MODE // 2026.02.21 @ 23:24:18 Player: opdo Result: Core destroyed Performance ------------- Evolutions (0) 0 Regions Visited (1) 200 Robots Destroyed (18) 90 Value Destroyed (339) 339 Prototype IDs (1) 20 Alien Tech Used (0) 0 Bonus (0) 0 TOTAL SCORE: 649 Bonus ------- None Cogmind --------- Core Integrity 0/250 Matter 237/300 Energy 193/250 System Corruption 4% Temperature Critical (715) Movement Walking (120) Location -10/Materials Parts ------- > --- POWER (1) -------- Ion Engine > --- PROPULSION (2) --- Improved Aluminum Leg Improved Aluminum Leg > --- UTILITY (2) ------ Medium Storage Unit Sensor Array > --- WEAPON (2) ------- Improved Medium Laser Improved Medium Laser > --- INVENTORY (10) --- Ion Engine Aluminum Leg Aluminum Leg Aluminum Leg Improved Aluminum Leg Improved Aluminum Leg Medium Laser Improved Medium Laser Grenade Launcher Maul Peak State ------------ > --- POWER ------------ Ion Engine > --- PROPULSION ------- Improved Aluminum Leg Improved Aluminum Leg > --- UTILITY ---------- Medium Storage Unit Seismic Detector > --- WEAPON ----------- Improved Medium Laser Improved Medium Laser > --- INVENTORY -------- Ion Engine Light Treads Light Treads Aluminum Leg Aluminum Leg Sensor Array Medium Laser Medium Laser Grenade Launcher Mining Laser [Rating: 14] Favorites ----------- Power Ion Engine Engine Ion Engine Propulsion Aluminum Leg Leg Aluminum Leg Utility Seismic Detector Device Seismic Detector Storage Medium Storage Unit Weapon Medium Laser Energy Gun Medium Laser Energy Cannon Beam Cannon Ballistic Gun Assault Rifle Launcher Grenade Launcher Build | -11 -10 ------- Run | Yrd Mat Slots Evolved . | . . Power . | . . Propulsion . | . . Utility . | . . Weapon . | . . Parts Attached 18 | 7 11 Power 1 | 1 . Engine 1 | 1 . Core . | . . Reactor . | . . Propulsion 4 | 2 2 Treads . | . . Leg 4 | 2 2 Wheel . | . . Hover . | . . Flight . | . . Utility 4 | 2 2 Device 2 | 1 1 Storage 2 | 1 1 Processor . | . . Hackware . | . . Protection . | . . Artifact . | . . Weapon 9 | 2 7 Energy Gun 6 | 1 5 Energy Cannon 1 | . 1 Ballistic Gun 1 | 1 . Ballistic Cannon . | . . Launcher 1 | . 1 Special Weapon . | . . Impact Weapon . | . . Slashing Weapon . | . . Piercing Weapon . | . . Special Melee Weapon . | . . Unidentified Prototypes 1 | . 1 Parts Lost 1 | . 1 Power . | . . Propulsion . | . . Utility 1 | . 1 Weapon . | . . Highest Loss Streak 1 | . 1 To Critical Strikes . | . . Average Backups 6 | 1 8 Power . | . 1 Propulsion 2 | 1 2 Utility . | . . Weapon 2 | . 3 Tool/Special . | . . Unused Backups 14 | . 14 Power 1 | . 1 Propulsion 5 | . 5 Utility 2 | . 2 Weapon 6 | . 6 Tool/Special . | . . Average Slot Usage (%) 100 | . 100 Engine 14 | . 14 Leg 28 | . 28 Device 14 | . 14 Storage 14 | . 14 Energy Gun 23 | . 23 Ballistic Gun 3 | . 3 Peak Build Rating 14 | 7 14 Average Rating 8 | 5 9 On Entrance 3 | . 7 Avg Prop Armor Cover (%) . | . . Naked Turns . | . . Heaviest Build 22 | 15 22 Greatest Support 26 | 20 26 Greatest Overweight (x) 2 | 2 . Average Overweight (x) . | . . Largest Inventory Capacity 10 | 8 10 Average Capacity 8 | 7 9 Most Carried 10 | 4 10 Average Carried 7 | 1 8 Final Capacity 10 | 8 10 Final Carried 10 | 4 10 Class Distribution -------------------- 100% | Mutant Dominant Class ---------------- Mutant | -10/Materials Resources | -11 -10 ----------- Run | Yrd Mat Matter Collected 385 | 228 157 Remotely . | . . Salvage Created 437 | 24 413 Parts 36 | 6 30 Haulers Intercepted 1 | . 1 Recyclers Shooed 2 | 1 1 Parts Field Recycled . | . . Retrieved Matter . | . . Parts Self-Destructed . | . . Prevented . | . . Parts Restored . | . . Kills | -11 -10 ------- Run | Yrd Mat Combat Hostiles Destroyed 12 | . 12 Guns 8 | . 8 AOE 4 | . 4 Classes Destroyed 7 | 1 6 Worker 1 | . 1 Tunneler 2 | 2 . Hauler 1 | . 1 Recycler 1 | . 1 Watcher 1 | . 1 Swarmer 6 | . 6 Grunt 6 | . 6 Best Kill Streak 8 | 2 8 Combat Bots Only 5 | . 5 Max Kills in Single Turn 3 | 1 3 Gunslinging . | . . Exploded 2 | . 2 Melee . | . . Uniques/NPCs Destroyed . | . . Combat | -11 -10 -------- Run | Yrd Mat Hostile Shots Fired 40 | . 40 Missed 14 | . 14 Hits 26 | . 26 Projectile 26 | . 26 Critical Strikes 2 | . 2 Damage Taken 549 | . 549 Core 267 | . 267 Absorbed by Shields . | . . Core Remaining (%) 100 | 100 . Volleys Fired 29 | 5 24 Largest 2 | 2 2 Hottest 112 | 70 112 Shots Fired 58 | 10 48 Gun 53 | 10 43 Cannon 1 | . 1 Launcher 4 | . 4 Special . | . . Kinetic 5 | 5 . Thermal 49 | 5 44 Explosive 4 | . 4 Electromagnetic . | . . Robot Hit Streak 5 | 2 5 Robot Miss Streak 3 | 3 2 Penetration Max . | . . Secondary Targets . | . . Shots Hit Robots 32 | 4 28 Core Hits 22 | 2 20 Critical Kills . | . . Critical Parts Destroyed . | . . Critical Strikes . | . . Melee Attacks . | . . Impact . | . . Slashing . | . . Piercing . | . . Sneak Attacks . | . . Combat Hostiles . | . . Follow-up Attacks . | . . Damage Inflicted 878 | 48 830 Guns 461 | 48 413 Cannons . | . . Explosions 417 | . 417 Melee . | . . Ramming . | . . Kinetic 12 | 12 . Thermal 449 | 36 413 Explosive 417 | . 417 Electromagnetic . | . . Impact . | . . Slashing . | . . Piercing . | . . Highest Corruption 4 | . 4 Average Corruption 4 | . 4 Corruption Purged . | . . Corruption Blocked . | . . Effects 6 | . 6 Matter Fused 2 | . 2 Heat Flow Errors 2 | . 2 Energy Discharges 1 | . 1 Data Loss (minor) 1 | . 1 Overload Shots . | . . Overflow Damage 10 | . 10 Projectiles . | . . Explosions 10 | . 10 Melee . | . . Knockbacks . | . . Impact . | . . Kinetic . | . . Secondary . | . . Self-Inflicted Damage 39 | . 39 Shots 1 | . 1 Rammed . | . . Targets Rammed . | . . Kicked . | . . Crushed . | . . Highest Temperature 715 | 45 715 Average Temperature 188 | 23 212 Received Heat Transfer 195 | . 195 Effects 14 | . 14 Shutdowns 2 | . 2 Energy Bleed 2 | . 2 Damage (minor) 2 | . 2 Damage (major) 3 | . 3 Damage (core) 5 | . 5 Siege Activations . | . . Martial Activations . | . . Shielding Activations . | . . Robots Disrupted . | . . Combat Hostiles . | . . Robots Corrupted . | . . Combat Hostiles . | . . Parts Fried . | . . Impact Corruptions . | . . Robots Melted . | . . Combat Hostiles . | . . Parts Melted 2 | . 2 Heat Transferred 1073 | 111 962 Parts Sabotaged . | . . Parts Stolen . | . . Parts Stripped . | . . Power Chain Reactions . | . . Alert | -11 -10 ------- Run | Yrd Mat Maximum Alert Level 1 | . 1 Low Security (%) 97 | 100 96 Level 1 2 | . 3 Level 2 . | . . Level 3 . | . . Level 4 . | . . Level 5 . | . . High Security . | . . Max Security . | . . Peak Influence 205 | 5 205 Initial . | . . Average 99 | . 120 Influence Increases 401 | 10 391 Destroy 0b10 Robot/C 240 | . 240 Destroy 0b10 Robot/NC 30 | 10 20 Destroy Leader 54 | . 54 Successful Hack 21 | . 21 Disable Machine 15 | . 15 Destroy Structure 26 | . 26 Lose Combat Pursuer 15 | . 15 Influence Decreases 205 | 10 195 Time Decay 195 | 10 185 Lost Part 10 | . 10 Squads Dispatched 1 | . 1 Investigation 1 | . 1 Extermination . | . . Reinforcement . | . . Assault . | . . Garrison . | . . Intercept . | . . Searches Triggered . | . . Construction Impeded . | . . Haulers Reinforced . | . . Active Scanning Responses . | . . Cargo Convoy Interrupts . | . . Stealth | -11 -10 --------- Run | Yrd Mat Distress Signals 2 | . 2 Communications Jammed . | . . Distress Signals . | . . Times Spotted 15 | . 15 Peak Tracking Total 5 | . 5 Tactical Retreats 1 | . 1 Traps | -11 -10 ------- Run | Yrd Mat Traps Triggered 1 | . 1 Indirectly . | . . Trap Hack Attempts . | . . Triggered . | . . Disarmed . | . . Reprogrammed . | . . Reused . | . . Traps Extracted . | . . Installed . | . . Triggered . | . . Machines | -11 -10 ---------- Run | Yrd Mat Machines Disabled 1 | . 1 Max in Single Turn 1 | . 1 Machines Repaired . | . . Machines Dismantled . | . . Machines Sabotaged . | . . Overloaded Fab Kills . | . . Hacking | -11 -10 --------- Run | Yrd Mat Machines Accessed 6 | . 6 Terminals 6 | . 6 Fabricators . | . . Repair Stations . | . . Recycling Units . | . . Scanalyzers . | . . Garrison Access . | . . Total Hacks 19 | . 19 Successful 10 | . 10 Failed 9 | . 9 Catastrophic 2 | . 2 Database Lockouts . | . . Manual 17 | . 17 Terminals 19 | . 19 Fabricators . | . . Repair Stations . | . . Recycling Units . | . . Scanalyzers . | . . Garrison Access . | . . Terminal Hacks 2 | . 2 Robot Analysis 1 | . 1 Terminal Index 1 | . 1 Fabricator Hacks . | . . Repair Station Hacks . | . . Recycling Unit Hacks . | . . Scanalyzer . | . . Garrison Access Hacks . | . . Unauthorized Hacks 8 | . 8 Terminals 8 | . 8 Botnet 3 | . 3 Skim 5 | . 5 Fabricators . | . . Repair Stations . | . . Recycling Units . | . . Scanalyzers . | . . Garrison Access . | . . Data Cores Recovered . | . . Used . | . . Hacking Detections 6 | . 6 Full Trace Events . | . . Feedback Events . | . . Feedback Blocked . | . . Robot Schematics Acquired . | . . Robots Built . | . . Authchips . | . . Time . | . . Total Robot Build Rating . | . . Part Schematics Acquired . | . . Parts Built . | . . Authchips . | . . Time . | . . Total Part Build Rating . | . . Part Studies Acquired . | . . Parts Repaired . | . . Time . | . . Parts Recycled . | . . Recycled Matter . | . . Retrieved Matter . | . . Retrieved Components . | . . Parts Scanalyzed . | . . Part Schematics Acquired . | . . Parts Damaged . | . . Bothacking | -11 -10 ------------ Run | Yrd Mat Used RIF Installer . | . . Robots Hacked . | . . Non-combat . | . . Combat . | . . Robot Hacks Applied . | . . Relay Couplers Released . | . . Fabnet Peak Effective % . | . . Robots Rewired . | . . Allies Hacked . | . . Hacks Repelled . | . . Allies | -11 -10 -------- Run | Yrd Mat Total Allies . | . . Largest Group . | . . Highest-Rated Group . | . . Highest-Rated Ally . | . . Total Orders . | . . Ally Attacks . | . . Total Damage . | . . Kills . | . . Allies Corrupted . | . . Allies Melted . | . . Intel | -11 -10 ------- Run | Yrd Mat Active Infowar (turns) 456 | 16 440 Sensors 70 | . 70 Seismic 386 | 16 370 Robot Analysis Total 1 | . 1 Derelict Logs Recovered . | . . Drone Launches . | . . Drone Recoveries . | . . Exploration | -11 -10 ------------- Run | Yrd Mat Turns Passed 535 | 91 444 Spaces Moved 324 | 52 272 Core 10 | 10 . Treads . | . . Legs 314 | 42 272 Wheels . | . . Hover . | . . Flight . | . . Fastest Speed 50 | 50 120 Average Speed 119 | 119 120 Slowest Speed 150 | 150 120 Overloaded Moves . | . . Propulsion Burnouts . | . . Robots Hopped . | . . Potential Cave-ins . | . . Cave-ins Triggered . | . . Exploration Rate (%) 26 | 4 48 Regions Visited 1 Branch Regions . Pre-discovered Areas 3 | . 3 Known Exits Taken . | . . Unknown Exits Taken 1 | 1 . Scrap Searched . | . . Spaces Dug . | . . Terrain Destroyed 21 | . 21 Melee . | . . Projectile . | . . AOE 21 | . 21 Terrain Rammed . | . . Walls Destroyed . | . . Machines Disabled . | . . Actions | -11 -10 --------- Run | Yrd Mat Total 417 | 67 350 Wait 14 | . 14 Move 323 | 51 272 Hop . | . . Pick Up 20 | 4 16 Fast Attach 7 | 7 . Attach 1 | . 1 Detach . | . . Swap 10 | . 10 Drop 13 | . 13 Fire 29 | 5 24 Melee . | . . Ram . | . . Kick . | . . Crush . | . . Escape Stasis . | . . Rewire . | . . Trap . | . . Miscellaneous . | . . Route ------- -11/Scrapyard -10/Materials (discovered 1 exit: [*Min]) History --------- Turn | Location | Event 17 | -11/Scrapyard | Discovered new exit (range 15) 92 | -11/Scrapyard | Entered Materials 313 | -10/Materials | Build established: Mutant 423 | -10/Materials | Discovered new exit (range 6) 434 | -10/Materials | Learned location of Storage (-7) 518 | -10/Materials | Learned location of Mines (-9) 525 | -10/Materials | Learned 2 Storage zone layouts 526 | -10/Materials | Learned location of Mines (-10) 528 | -10/Materials | Core integrity fell below 50% 531 | -10/Materials | Core integrity fell below 20% 533 | -10/Materials | Learned location of 1 exit from Storage 537 | -10/Materials | Core destroyed Last Messages --------------- 00525_ >> SKIM: Stored Storage zone layouts (x2). 00525_ Overheating: Core damaged (-50). 00526_ >> SKIM: World map updated: -10/Mines. 00527_ Overheating: Energy bleed (-44). 00528_ Overheating: Core damaged (-27). 00529_ Power failure, Ion Engine shutdown. 00530_ Overheating: Core damaged (-37). 00531_ Overheating: Core damaged (-32). 00533_ >> SKIM: Stored Storage exits (x1). 00533_ Overheating: Imp. Medium Laser damaged (-49). 00535_ Aluminum Leg melted. 00535_ G-47 Trooper destroyed. 00536_ Overheating: Sensor Array damaged (-11). 00536_ Overheating: Imp. Aluminum Leg damaged (-42). 00536_ Overheating: Imp. Aluminum Leg damaged (-39). 00537_ Overheating: Core damaged (-37). Map ----- +----------------------------------------------------+ | | | | | | | | | | | | | | | | | | | | | | | | | | | ?????????????????????????????????????????????? | | ?????????????????????????????????????????????? | | ?????????????????????????????????????????????? | | ?????????????????????????????????????????????? | | ?????????#####???????????????????????????????? | | ????????##"""##??????????#######?????????????? | | ???????##"|||"##???????? #?????????????? | | ???????#"" ""#???????? #?????????????? | | ???????# #??????? ??????????????? | | ???????# < #??????? """ ??????????????? | | ???????# #?????? !] """ ??????????????? | | ???????# #?##### =] """ #?????????????? | | ????????# #??# @ =% % #?????????????? | | ########## #???# ### %![[ #?????????????? | | #! # #???# #??##########?????????????? | | # """ + #####+####??????????????????????? | | # """ # # !* #??????????????????????? | | # """ # # """""=[#??????????????????????? | | # # # """"" =#??????????????????????? | | # """ # # """"" #??????????????????????? | | #! """ # + """"" /#????????????????+###### | | # """ # # """"" #???????????????? | | # # # """" #???????????????? | | ######+### # """"" #???????????????? ? | | ?????# #?# # #????????????????# #?? | | ?##### #?# ##########?????????######## #?? | | ?#== #?# #??????????????????# # #?? | | ?# ### #????##????????????# + #?? | | ?#/ | ## #####T#####???????# # #?? | | ?#// ## ######### # #?? | | ?#[[ ## + # ### | | ?#[ [ ## ###### # # | | ?##### ## ####### #?###########= # | | ???### ####+#####???# #?# = [# # | | ??# # #???# #?# """ +*[ + | | ??# # # #???# #?# "T" #*% # | | ??#### # #??## #?# # !# | +----------------------------------------------------+ Best States ------------- Heat Dissipation 25 Energy Generation 10 Energy Capacity 250 Matter Stores 243 Matter Capacity 300 Sight Range 16 Robot Scan Range 14 Terrain Scan Density 10 Evasion (%) 55 Item Schematics ----------------- None Robot Schematics ------------------ None Fabricated ------------ Nothing Repaired ---------- Nothing Studied --------- None Alien Tech Used ----------------- None Achievements -------------- None Challenges ------------ None Game ------ Seed ChainWeldingWarhead Manual? 0 Play Time 00:07:11 Cumulative 154.9 hours Start 2026.02.21 @ 23:20:21 End 2026.02.21 @ 23:24:18 Sessions 1 Manual Loads 0 Difficulty Rogue Special Mode None Game No. 376 Rogue 374 Adventurer 2 Explorer 0 Win Type - Total 3 Types 3/0/0/0/0/0/0/0/0/0 Lore% 81 Gallery% 62 Achievement% 46 Wizard Run 0 Options --------- Layout 2 ASCII 0 Keyboard 0 Movement Numpad Keybinds 0 Fullscreen 2 Font 24/Smallcaps Map View 50x44 Zoom Use 0% Tactical HUD 1 Map Filters NONE Filters NONE Steam 1 RUN: 07a17763-bdf0-4e41-91a0-7b7d399f94f4